fUST/lending_fUST_20240807
["ID","MTS","AMOUNT","RATE_DAILY","PERIOD"]
[334324575,1722976240457,-500.0,0.00038356,14]
[334324576,1722976240466,-500.0,0.00038356,14]
[334324577,1722976240476,-557.65,0.00038356,14]
[334324578,1722976240485,-630.92,0.00038356,14]
[334324579,1722976240495,-500.0,0.00038356,14]
[334324580,1722976240504,-500.0,0.00038356,14]
[334324581,1722976240513,-151.0,0.00038356,7]
[334324582,1722976240522,-2031.59,0.00038356,14]
[334324583,1722976240532,-500.0,0.00038356,14]
[334324584,1722976240541,-500.0,0.00038356,14]
[334324585,1722976240551,-500.0,0.00038356,14]
[334324586,1722976240562,-500.0,0.00038356,14]
[334324587,1722976240572,-500.0,0.00038356,14]
[334324588,1722976240582,-500.0,0.00038356,14]
[334324589,1722976240591,-500.0,0.00038356,14]
[334324590,1722976240600,-500.0,0.00038356,14]
[334324591,1722976240610,-500.0,0.00038356,14]
[334324592,1722976240619,-500.0,0.00038356,14]
[334324593,1722976240630,-214.11538912,0.00038356,14]
[334324594,1722976240639,-573.12338806,0.00038356,14]
[334324595,1722976240649,-500.0,0.00038356,14]
[334324596,1722976240659,-500.0,0.00038356,14]
[334324597,1722976240668,-677.05,0.00038356,14]
[334324598,1722976240677,-500.0,0.00038356,14]
[334324599,1722976240688,-500.0,0.00038356,14]
[334324600,1722976240699,-963.28,0.00038356,14]
[334324601,1722976240709,-369.77029459,0.00038356,14]
[334324602,1722976240718,-500.0,0.00038356,14]
[334324603,1722976240727,-500.0,0.00038356,14]
[334324604,1722976240737,-516.53843016,0.00038356,14]
[334324605,1722976240747,-610.49,0.00038356,14]
[334324606,1722976240756,-2539.44,0.00038356,14]
[334324607,1722976240765,-511.75049245,0.00038356,14]
[334324608,1722976240775,-500.0,0.00038356,14]
[334324609,1722976240784,-1134.12,0.00038356,14]
[334324610,1722976240794,-500.0,0.00038356,14]
[334324611,1722976240803,-186.11955881,0.00038356,14]
[334324612,1722976240813,-1084.71,0.00038356,14]
[334324613,1722976240822,-500.0,0.00038356,14]
[334324615,1722976240831,-514.67,0.00038356,14]
[334324616,1722976240840,-500.0,0.00038356,14]
[334324618,1722976240850,-500.0,0.00038356,14]
[334324619,1722976240860,-632.30716329,0.00038356,14]
[334324620,1722976240869,-500.0,0.00038356,14]
[334324621,1722976240882,-554.01,0.00038356,14]
[334324622,1722976240891,-500.0,0.00038356,14]
[334324623,1722976240904,-500.0,0.00038356,14]
[334324624,1722976240913,-151.0,0.00038356,7]
[334324625,1722976240923,-151.0,0.00038356,7]
[334324626,1722976240932,-151.0,0.00038356,7]
[334324627,1722976240942,-500.0,0.00038356,14]
[334324628,1722976240951,-165.16306182,0.00038356,14]
[334324629,1722976240961,-645.46,0.00038356,14]
[334324630,1722976240971,-500.0,0.00038356,14]
[334324631,1722976240982,-1325.78,0.00038356,14]
[334324632,1722976240992,-500.0,0.00038356,14]
[334324633,1722976241001,-586.73,0.00038356,14]
[334324634,1722976241011,-500.0,0.00038356,14]
[334324635,1722976241020,-989.44,0.00038356,14]
[334324636,1722976241030,-330.852414,0.00038356,7]
[334324637,1722976241040,-330.852414,0.00038356,7]
[334324638,1722976241050,-330.852414,0.00038356,7]
[334324639,1722976241059,-330.852414,0.00038356,7]
[334324640,1722976241068,-330.852414,0.00038356,7]
[334324641,1722976241078,-330.852414,0.00038356,7]
[334324642,1722976241297,-330.852414,0.00038356,7]
[334324643,1722976241306,-500.0,0.00038356,14]
[334324644,1722976241316,-500.0,0.00038356,14]
[334324645,1722976241325,-518.26,0.00038356,14]
[334324646,1722976241335,-500.0,0.00038356,14]
[334324647,1722976241344,-330.852414,0.00038356,7]
[334324648,1722976241354,-330.852414,0.00038356,7]
[334324649,1722976241363,-330.852414,0.00038356,7]
[334324650,1722976241372,-330.852414,0.00038356,7]
[334324651,1722976241386,-1763.11,0.00038356,14]
[334324652,1722976241395,-330.852414,0.00038356,7]
[334324653,1722976241405,-330.852414,0.00038356,7]
[334324654,1722976241414,-330.852414,0.00038356,7]
[334324655,1722976241424,-500.0,0.00038356,14]
[334324656,1722976241434,-500.0,0.00038356,14]
[334324657,1722976241443,-500.0,0.00038356,14]
[334324658,1722976241454,-692.14,0.00038356,14]
[334324659,1722976241463,-710.04,0.00038356,14]
[334324660,1722976241474,-500.0,0.00038356,14]
[334324661,1722976241484,-500.0,0.00038356,14]
[334324662,1722976241494,-1169.65,0.00038356,14]
[334324663,1722976241504,-500.0,0.00038356,14]
[334324664,1722976241514,-500.0,0.00038356,14]
[334324665,1722976241524,-500.0,0.00038356,14]
[334324666,1722976241534,-500.0,0.00038356,14]
[334324667,1722976241545,-500.0,0.00038356,14]
[334324668,1722976241554,-500.0,0.00038356,14]
[334324669,1722976241564,-500.0,0.00038356,14]
[334324670,1722976241574,-500.0,0.00038356,14]
[334324671,1722976241585,-500.0,0.00038356,14]
[334324672,1722976241594,-500.0,0.00038356,14]
[334324673,1722976241604,-500.0,0.00038356,14]
[334324674,1722976241615,-500.0,0.00038356,14]
[334324675,1722976241631,-582.54081897,0.00038356,14]
[334324676,1722976241641,-507.76,0.00038356,14]
[334324677,1722976241652,-223.12722583,0.00038356,14]
[334324678,1722976241663,-500.0,0.00038356,14]
[334324679,1722976241673,-500.0,0.00038356,14]
[334324680,1722976241683,-691.86,0.00038356,14]
[334324681,1722976241693,-219.977637,0.00038356,7]
[334324682,1722976241703,-219.977637,0.00038356,7]
[334324683,1722976241712,-219.977637,0.00038356,7]
[334324684,1722976241723,-500.0,0.00038356,14]
[334324685,1722976241732,-219.977637,0.00038356,7]
[334324686,1722976241742,-219.977637,0.00038356,7]
[334324687,1722976241752,-219.977637,0.00038356,7]
[334324688,1722976241762,-197.43192012,0.00038356,14]
[334324689,1722976241771,-1399.23,0.00038356,14]
[334324690,1722976241781,-829.8,0.00038356,14]
[334324691,1722976241790,-219.977637,0.00038356,7]
[334324692,1722976241800,-219.977637,0.00038356,7]
[334324693,1722976241809,-219.977637,0.00038356,7]
[334324694,1722976241819,-219.977637,0.00038356,7]
[334324695,1722976241828,-219.977637,0.00038356,7]
[334324696,1722976241838,-299.45358226,0.00038356,14]
[334324697,1722976241848,-219.977637,0.00038356,7]
[334324698,1722976241857,-2045.54,0.00038356,14]
[334324699,1722976241867,-500.0,0.00038356,14]
[334324700,1722976241876,-138.94693963,0.00038356,14]
[334324701,1722976242280,-162.32934358,0.00027493,2]
[334324702,1722976242290,-2325.17306037,0.00038356,14]
[334324703,1722976242299,-500.0,0.00038356,14]
[334324704,1722976242308,-500.0,0.00038356,14]
[334324705,1722976242317,-2349.08,0.00038356,14]
[334324706,1722976242328,-500.0,0.00038356,14]
[334324707,1722976242337,-500.0,0.00038356,14]
[334324708,1722976242346,-500.0,0.00038356,14]
[334324709,1722976242356,-151.0,0.00038356,7]
[334324710,1722976242366,-151.0,0.00038356,7]
[334324711,1722976242375,-151.0,0.00038356,7]
[334324712,1722976242389,-151.0,0.00038356,7]
[334324713,1722976242398,-500.0,0.00038356,14]
[334324714,1722976242407,-500.0,0.00038356,14]
[334324715,1722976242416,-545.26,0.00038356,14]
[334324716,1722976242426,-504.14,0.00038356,14]
[334324717,1722976242435,-1786.35,0.00038356,14]
[334324718,1722976242444,-622.54,0.00038356,14]
[334324719,1722976242454,-1298.2,0.00038356,14]
[334324720,1722976242464,-500.0,0.00038356,14]
[334324721,1722976242473,-500.0,0.00038356,14]
[334324722,1722976242483,-811.58,0.00038356,14]
[334324723,1722976242493,-581.4,0.00038356,14]
[334324724,1722976242502,-500.0,0.00038356,14]
[334324725,1722976242511,-500.0,0.00038356,14]
[334324726,1722976242521,-500.0,0.00038356,14]
[334324727,1722976242530,-1044.51,0.00038356,14]
[334324728,1722976242541,-500.0,0.00038356,14]
[334324729,1722976242550,-500.0,0.00038356,14]
[334324730,1722976242562,-399.17936676,0.00038356,14]
[334324731,1722976242571,-3081.82,0.00038356,14]
[334324732,1722976242581,-500.0,0.00038356,14]
[334324733,1722976242591,-500.0,0.00038356,14]
[334324734,1722976242600,-500.0,0.00038356,14]
[334324735,1722976242610,-500.0,0.00038356,14]
[334324736,1722976242620,-500.0,0.00038356,14]
[334324737,1722976242633,-500.0,0.00038356,14]
[334324738,1722976242642,-807.69,0.00038356,14]
[334324739,1722976242652,-639.14,0.00038356,14]
[334324740,1722976242661,-500.0,0.00038356,14]
[334324741,1722976242670,-819.97,0.00038356,14]
[334324742,1722976242679,-500.0,0.00038356,14]
[334324743,1722976242689,-500.0,0.00038356,14]
[334324744,1722976242698,-500.0,0.00038356,14]
[334324745,1722976242707,-500.0,0.00038356,14]
[334324746,1722976242717,-1117.64,0.00038356,14]
[334324747,1722976242727,-689.78,0.00038356,14]
[334324748,1722976242736,-500.0,0.00038356,14]
[334324749,1722976242746,-591.12,0.00038356,14]
[334324750,1722976242755,-500.0,0.00038356,14]
[334324751,1722976242764,-500.0,0.00038356,14]
[334324752,1722976242774,-604.34,0.00038356,14]
[334324753,1722976242785,-513.34,0.00038356,14]
[334324754,1722976242795,-500.0,0.00038356,14]
[334324755,1722976242805,-500.0,0.00038356,14]
[334324756,1722976242815,-151.0,0.00038356,7]
[334324757,1722976242824,-1167.08,0.00038356,14]
[334324758,1722976242834,-151.0,0.00038356,7]
[334324759,1722976242843,-500.0,0.00038356,14]
[334324760,1722976242853,-506.19,0.00038356,14]
[334324761,1722976242862,-653.01,0.00038356,14]
[334324762,1722976242872,-989.11,0.00038356,14]
[334324763,1722976242885,-770.23,0.00038356,14]
[334324764,1722976242894,-500.0,0.00038356,14]
[334324765,1722976242906,-500.0,0.00038356,14]
[334324766,1722976242916,-500.0,0.00038356,14]
[334324767,1722976242926,-1101.64,0.00038356,14]
[334324769,1722976242936,-500.0,0.00038356,14]
[334324771,1722976242945,-500.0,0.00038356,14]
[334324772,1722976242954,-500.0,0.00038356,14]
[334324773,1722976242963,-1371.83,0.00038356,14]
[334324774,1722976242973,-2000.0,0.00038356,14]
[334324775,1722976242984,-500.0,0.00038356,14]
[334324776,1722976242995,-500.0,0.00038356,14]
[334324777,1722976243004,-1893.58,0.00038356,14]
[334324778,1722976243014,-500.0,0.00038356,14]
[334324779,1722976243024,-500.0,0.00038356,14]
[334324780,1722976243033,-500.0,0.00038356,14]
[334324781,1722976243043,-597.37,0.00038356,14]
[334324782,1722976243052,-2197.67,0.00038356,14]
[334324783,1722976243062,-500.0,0.00038356,14]
[334324784,1722976243071,-500.0,0.00038356,14]
[334324785,1722976243081,-500.0,0.00038356,14]
[334324786,1722976243091,-500.0,0.00038356,14]
[334324787,1722976243100,-2245.14,0.00038356,14]
[334324789,1722976243109,-500.0,0.00038356,14]
[334324791,1722976243119,-500.0,0.00038356,14]
[334324793,1722976243131,-2067.34,0.00038356,14]
[334324794,1722976243140,-740.36,0.00038356,14]
[334324795,1722976243149,-500.0,0.00038356,14]
[334324796,1722976243159,-531.31878181,0.00038356,14]
[334324797,1722976243168,-699.92,0.00038356,14]
[334324798,1722976243178,-500.0,0.00038356,14]
[334324799,1722976243188,-611.17,0.00038356,14]
[334324800,1722976243198,-500.0,0.00038356,6]
[334324801,1722976243208,-212.77555315,0.00038356,14]
[334324802,1722976243217,-561.38,0.00038356,14]
[334324803,1722976243227,-502.23,0.00038356,14]
[334324804,1722976243236,-391.55386821,0.00038356,14]
[334324805,1722976243246,-500.0,0.00038356,14]
[334324806,1722976243256,-500.0,0.00038356,14]
[334324807,1722976243265,-525.20921789,0.00038356,14]
[334324808,1722976243275,-221.23503111,0.00038356,14]
[334324809,1722976243284,-114.22655505,0.00038356,14]
[334324818,1722976243653,-143.81522455,0.00038345,15]
[334324819,1722976243673,-348.69500172,0.00038345,15]
[334324820,1722976243683,-385.77344495,0.00038356,14]
[334324821,1722976243692,-500.0,0.00038356,14]
[334324822,1722976243702,-724.71,0.00038356,14]
[334324823,1722976243712,-500.0,0.00038356,14]
[334324824,1722976243721,-500.0,0.00038356,14]
[334324825,1722976243731,-510.31,0.00038356,14]
[334324826,1722976243741,-500.0,0.00038356,14]
[334324828,1722976243751,-500.0,0.00038356,14]
[334324830,1722976243760,-1576.47,0.00038356,14]
[334324832,1722976243770,-3414.79,0.00038356,14]
[334324834,1722976243780,-3576.99,0.00038356,14]
[334324835,1722976243789,-500.0,0.00038356,14]
[334324837,1722976243799,-722.26,0.00038356,14]
[334324839,1722976243808,-500.0,0.00038356,14]
[334324841,1722976243818,-365.97709466,0.00038356,14]
[334324843,1722976243831,-134.02290534,0.00038356,14]
[334324845,1722976243840,-1462.64,0.00038356,14]
[334324846,1722976243849,-500.0,0.00038356,14]
[334324847,1722976243859,-500.0,0.00038356,14]
[334324848,1722976243867,-500.0,0.00038356,14]
[334324849,1722976243877,-1521.04,0.00038356,14]
[334324850,1722976243895,-500.0,0.00038356,14]
[334324851,1722976243908,-500.0,0.00038356,14]
[334324852,1722976243917,-500.0,0.00038356,14]
[334324853,1722976243926,-579.37627337,0.00038356,14]
[334324854,1722976243939,-382.32372663,0.00038356,14]
[334324855,1722976243948,-632.27552307,0.00038356,14]
[334324856,1722976243958,-491.4907503,0.00038356,14]
[334324857,1722976247509,-4403.78,0.00038336,3]
[334324858,1722976247519,-174.99372663,0.00038356,14]
[334324859,1722976247528,-4192.49,0.00038356,14]
[334324860,1722976247538,-500.0,0.00038356,14]
[334324861,1722976247548,-543.45,0.00038356,14]
[334324862,1722976247558,-500.0,0.00038356,14]
[334324863,1722976247568,-500.0,0.00038356,14]
[334324864,1722976247578,-500.0,0.00038356,14]
[334324865,1722976247587,-500.0,0.00038356,14]
[334324866,1722976247597,-500.0,0.00038356,14]
[334324867,1722976247606,-1064.24,0.00038356,14]
[334324868,1722976247616,-500.0,0.00038356,14]
[334324869,1722976247625,-1003.09,0.00038356,14]
[334324870,1722976247635,-500.0,0.00038356,14]
[334324872,1722976247645,-500.0,0.00038356,14]
[334324873,1722976247654,-1000.0,0.00038356,28]
[334324874,1722976247663,-491.18033109,0.00038356,14]
[334324875,1722976247673,-1000.0,0.00038356,28]
[334324876,1722976247683,-1000.0,0.00038356,28]
[334324877,1722976247692,-379.126925,0.00038356,28]
[334324878,1722976247702,-500.0,0.00038356,14]
[334324879,1722976247711,-1410.36,0.00038356,14]
[334324880,1722976247720,-1345.61571633,0.00038356,14]
[334324881,1722976247733,-2349.35428367,0.00038356,14]
[334324882,1722976247743,-500.0,0.00038356,14]
[334324883,1722976247753,-500.0,0.00038356,14]
[334324884,1722976247762,-500.0,0.00038356,14]
[334324885,1722976247771,-519.13,0.00038356,14]
[334324886,1722976247793,-500.0,0.00038356,7]
[334324887,1722976247804,-13.20437366,0.00038356,14]
[334324888,1722976247819,-1398.57585099,0.00038356,14]
[334324889,1722976247832,-60.25977535,0.00038356,14]
[334324890,1722976247842,-500.0,0.00038356,14]
[334324891,1722976247852,-500.0,0.00038356,14]
[334324892,1722976247862,-500.0,0.00038356,14]
[334324893,1722976247872,-500.0,0.00038356,14]
[334324894,1722976247882,-279.17069792,0.00038356,14]
[334324903,1722976825998,160.933552,0.00014247,2]
[334324904,1722976887752,319.47476254,0.00014247,2]
[334324905,1722976970266,-1198.0761018,0.00017153,2]
[334324907,1722977023667,-250.0,0.00017009,2]
[334324908,1722977023693,-761.45365315,0.00017017,2]
[334324909,1722977081508,-533.92328189,0.00016347,2]
[334324910,1722977081536,-154.79103211,0.00016347,2]
[334324911,1722977081565,-2311.285686,0.00016536,2]
[334324912,1722977087769,-688.714314,0.00016536,2]
[334324913,1722977087795,-17.89012285,0.00017017,2]
[334324914,1722977087821,-268.89935592,0.00017019,2]
[334324915,1722977087847,-35.94986038,0.00017019,2]
[334324916,1722977116832,-24900.0,0.00016589,2]
[334324917,1722977121104,-975.50379277,0.00017019,2]
[334324918,1722977121127,-190.06711634,0.00017019,2]
[334324919,1722977121150,-494.23715236,0.00017019,2]
[334324920,1722977121175,-250.0,0.00017056,2]
[334324921,1722977121203,-250.0,0.00017102,2]
[334324922,1722977121229,-236.77610755,0.00017149,2]
[334324923,1722977123608,-13.22389245,0.00017149,2]
[334324924,1722977123632,-250.0,0.00017196,2]
[334324925,1722977123657,-250.0,0.00017242,2]
[334324926,1722977123681,-250.0,0.00017289,2]
[334324927,1722977123704,-250.0,0.00017336,2]
[334324928,1722977123728,-250.0,0.00017382,2]
[334324929,1722977123752,-250.0,0.00017429,2]
[334324930,1722977123780,-250.0,0.00017476,2]
[334324931,1722977123804,-110.85331375,0.00017522,2]
[334324935,1722977137255,-1669.01055043,0.00017017,2]
[334324936,1722977207835,-5222.2956212,0.0001682,2]
[334324937,1722977241126,-334.9835458,0.00016802,2]
[334324938,1722977241152,-178.3278382,0.0001682,2]
[334324939,1722977241177,-179.47265816,0.00017017,2]
[334324940,1722977241204,-912.4763458,0.00017522,2]
[334324941,1722977241234,-139.14668625,0.00017522,2]
[334324942,1722977241261,-250.0,0.00017569,2]
[334324943,1722977241291,-250.0,0.00017616,2]
[334324944,1722977241317,-250.0,0.00017662,2]
[334324945,1722977241343,-250.0,0.00017709,2]
[334324946,1722977241371,-250.0,0.00017756,2]
[334324947,1722977241398,-250.0,0.00017802,2]
[334324948,1722977241426,-250.0,0.00017849,2]
[334324949,1722977241455,-250.0,0.00017896,2]
[334324950,1722977241481,-2396.58416902,0.00017955,2]
[334324951,1722977241503,-248.70297397,0.00017958,2]
[334324952,1722977241524,-317.72521,0.00017958,2]
[334324953,1722977241545,-300.0,0.00017998,2]
[334324954,1722977241566,-1874.0772062,0.00017999,2]
[334324955,1722977241587,-300.0,0.00018053,2]
[334324956,1722977241608,-378.94770609,0.00018054,2]
[334324957,1722977241932,-500.0,0.00018054,2]
[334324958,1722977241988,-500.0,0.00018054,2]
[334324959,1722977242011,-500.0,0.00018054,2]
[334324960,1722977242032,-500.0,0.00018054,2]
[334324961,1722977242052,-500.0,0.00018054,2]
[334324962,1722977242074,-500.0,0.00018054,2]
[334324963,1722977242095,-500.0,0.00018054,2]
[334324964,1722977242116,-500.0,0.00018054,2]
[334324965,1722977242140,-245.26236316,0.00018054,2]
[334324966,1722977242161,-500.0,0.00018054,2]
[334324967,1722977242181,-503.16271963,0.00018054,2]
[334324968,1722977242203,-500.0,0.00018054,2]
[334324969,1722977242229,-500.0,0.00018054,2]
[334324970,1722977242250,-500.0,0.00018054,2]
[334324971,1722977242271,-500.0,0.00018054,2]
[334324972,1722977242297,-500.0,0.00018054,2]
[334324973,1722977242320,-619.85736303,0.00018054,2]
[334324974,1722977242342,-500.0,0.00018054,2]
[334324975,1722977242364,-500.0,0.00018054,2]
[334324976,1722977242389,-500.0,0.00018054,2]
[334324977,1722977242410,-500.0,0.00018054,2]
[334324978,1722977242432,-166.55013957,0.00018054,2]
[334324979,1722977242455,-500.0,0.00018054,2]
[334324980,1722977242475,-500.0,0.00018054,2]
[334324981,1722977242497,-500.0,0.00018054,2]
[334324982,1722977242518,-500.0,0.00018054,2]
[334324983,1722977242540,-500.0,0.00018054,2]
[334324984,1722977242562,-500.0,0.00018054,2]
[334324985,1722977242583,-500.0,0.00018054,2]
[334324986,1722977242605,-500.0,0.00018054,2]
[334324987,1722977242627,-500.0,0.00018054,2]
[334324988,1722977242648,-500.0,0.00018054,2]
[334324989,1722977242669,-500.0,0.00018054,2]
[334324990,1722977242690,-620.00439124,0.00018054,2]
[334324991,1722977242710,-500.0,0.00018054,2]
[334324992,1722977242730,-500.0,0.00018054,2]
[334324993,1722977242750,-524.5009043,0.00018054,2]
[334324994,1722977242771,-500.0,0.00018054,2]
[334324995,1722977242791,-500.0,0.00018054,2]
[334324996,1722977242813,-500.0,0.00018054,2]
[334324997,1722977242833,-500.0,0.00018054,2]
[334324998,1722977242855,-500.0,0.00018054,2]
[334324999,1722977242879,-500.0,0.00018054,2]
[334325000,1722977242900,-500.0,0.00018054,2]
[334325001,1722977242925,-500.0,0.00018054,2]
[334325002,1722977242947,-500.0,0.00018054,2]
[334325003,1722977242970,-500.0,0.00018054,2]
[334325004,1722977242993,-500.0,0.00018054,2]
[334325005,1722977243017,-500.0,0.00018054,2]
[334325006,1722977243039,-500.0,0.00018054,2]
[334325007,1722977243061,-500.0,0.00018054,2]
[334325008,1722977243084,-500.0,0.00018054,2]
[334325009,1722977243106,-500.0,0.00018054,2]
[334325010,1722977243131,-500.0,0.00018054,2]
[334325011,1722977243154,-500.0,0.00018054,2]
[334325012,1722977243178,-500.0,0.00018054,2]
[334325013,1722977243201,-500.0,0.00018054,2]
[334325014,1722977243228,-500.0,0.00018054,2]
[334325015,1722977243255,-500.0,0.00018054,2]
[334325016,1722977243277,-500.0,0.00018054,2]
[334325017,1722977243301,-500.0,0.00018054,2]
[334325018,1722977243324,-500.0,0.00018054,2]
[334325019,1722977243346,-91.19788226,0.00018054,2]
[334325020,1722977243817,-408.80211774,0.00018054,2]
[334325021,1722977243841,-500.0,0.00018054,2]
[334325022,1722977243865,-94.76569227,0.00018054,2]
[334325023,1722977252149,-405.23430773,0.00018054,2]
[334325024,1722977252173,-400.420192,0.00018054,2]
[334325025,1722977252197,-500.0,0.00018054,2]
[334325026,1722977252225,-500.0,0.00018054,2]
[334325027,1722977252249,-500.0,0.00018054,2]
[334325028,1722977252274,-500.0,0.00018054,2]
[334325029,1722977252298,-500.0,0.00018054,2]
[334325030,1722977252322,-500.0,0.00018054,2]
[334325031,1722977252345,-500.0,0.00018054,2]
[334325032,1722977252369,-500.0,0.00018054,2]
[334325033,1722977252395,-6.39089456,0.00018054,2]
[334325036,1722977350124,-300.0,0.00018053,2]
[334325037,1722977350145,-948.96587788,0.00018054,2]
[334325038,1722977350166,-5604.54171596,0.00018054,2]
[334325039,1722977352101,-1314.74615822,0.00018054,2]
[334325040,1722977353117,-9171.75403845,0.00018054,2]
[334325041,1722977353139,-3373.97679438,0.00018054,2]
[334325042,1722977353161,-224.94454492,0.00018056,2]
[334325043,1722977353183,-351.8389044,0.00018056,2]
[334325044,1722977353205,-500.0,0.00018056,2]
[334325045,1722977353230,-179.98415145,0.00018056,2]
[334325046,1722977353252,-500.0,0.00018056,2]
[334325047,1722977353276,-500.0,0.00018056,2]
[334325048,1722977353302,-500.0,0.00018056,2]
[334325049,1722977353324,-500.0,0.00018056,2]
[334325050,1722977353348,-500.0,0.00018056,2]
[334325051,1722977353371,-396.29065322,0.00018056,2]
[334325052,1722977353391,-6898.71272651,0.00018057,2]
[334325053,1722977367136,-26383.44448939,0.00018057,2]
[334325054,1722977367157,-4110.44330417,0.00018247,2]
[334325055,1722977367179,-1768.01961959,0.00018773,2]
[334325056,1722977367201,-1500.0,0.00018845,2]
[334325057,1722977367224,-1500.0,0.00018845,2]
[334325058,1722977367246,-1379.74082134,0.00018869,2]
[334325059,1722977367271,-156.63892832,0.0001891,2]
[334325060,1722977367293,-694.25197697,0.0001891,2]
[334325061,1722977367315,-156.73199194,0.00018945,2]
[334325062,1722977367337,-156.96415689,0.0001895,2]
[334325063,1722977367358,-165.53506923,0.0001895,2]
[334325064,1722977367380,-600.8534117,0.0001895,2]
[334325065,1722977367402,-205.22796673,0.0001895,2]
[334325066,1722977367424,-412.11713438,0.0001895,2]
[334325067,1722977367447,-154.79103211,0.0001895,2]
[334325068,1722977367469,-201.4758121,0.0001895,2]
[334325069,1722977367492,-156.8188046,0.0001895,2]
[334325070,1722977367513,-180.4790292,0.0001895,2]
[334325071,1722977367535,-810.1149959,0.0001895,2]
[334325072,1722977367556,-532.14086008,0.00018969,2]
[334325073,1722977367578,-209.86849569,0.00018969,2]
[334325074,1722977367599,-174.56235819,0.00018969,2]
[334325075,1722977367620,-154.79103211,0.00018969,2]
[334325076,1722977367640,-319.72766707,0.00018976,2]
[334325077,1722977367661,-250.0,0.00019041,2]
[334325078,1722977367681,-42347.64201934,0.00019177,2]
[334325079,1722977367702,-170.589382,0.00019178,2]
[334325080,1722977367725,-168.878791,0.00019178,2]
[334325081,1722977367745,-20762.30804091,0.00019256,2]
[334325082,1722977367767,-2162.60520141,0.00019451,2]
[334325083,1722977367788,-2278.204521,0.00019451,3]
[334325084,1722977367810,-849.39914621,0.00019451,2]
[334325085,1722977367832,-242.81247708,0.00019451,2]
[334325086,1722977367853,-154.60575532,0.00019451,2]
[334325087,1722977367876,-154.77557542,0.00019451,2]
[334325088,1722977367898,-267.69783436,0.00019451,2]
[334325089,1722977367921,-210.38038351,0.00019451,2]
[334325090,1722977367945,-154.60575532,0.00019451,2]
[334325091,1722977367974,-540.53135974,0.00019451,4]
[334325092,1722977367996,-194.03,0.00019467,3]
[334325093,1722977368018,-582.14,0.00019467,3]
[334325094,1722977368040,-17532.3199882,0.00019468,2]
[334325095,1722977368062,-816.2198788,0.00019477,2]
[334325096,1722977368084,-519.71041987,0.00019477,2]
[334325097,1722977368105,-154.83016917,0.00019477,2]
[334325098,1722977368126,-727.52933543,0.00019477,2]
[334325099,1722977368154,-183.7811721,0.00019477,2]
[334325100,1722977368176,-155.07862035,0.00019477,2]
[334325101,1722977368200,-157.80579925,0.00019477,2]
[334325102,1722977368222,-304.72833914,0.00019477,2]
[334325103,1722977368244,-356.53097519,0.00019477,2]
[334325104,1722977368268,-403.74175046,0.00019477,2]
[334325105,1722977368290,-240.84967759,0.00019477,2]
[334325106,1722977368312,-155.18666141,0.00019477,2]
[334325107,1722977368333,-862.42234122,0.00019477,2]
[334325108,1722977368357,-287.99033069,0.00019477,2]
[334325109,1722977368379,-154.77557542,0.00019477,2]
[334325110,1722977368405,-154.85940405,0.00019477,2]
[334325111,1722977368425,-200.00138637,0.00019477,2]
[334325112,1722977368446,-299.67919503,0.00019477,2]
[334325113,1722977368468,-196.46943428,0.00019477,2]